[Event "AUT-ch 2018"]
[Site "Vienna"]
[Date "2018.07.25"]
[Round "5"]
[White "Diermair, Andreas"]
[Black "Fauland, Alexander"]
[Result "1-0"]
[ECO "D31"]
[WhiteElo "2508"]
[BlackElo "2419"]
[Annotator "ChessBase"]
[PlyCount "45"]
[EventDate "2018.07.22"]
[EventType "swiss"]
[EventCountry "AUT"]
[SourceTitle "playchess.com"]
[Source "ChessBase"]
[SourceQuality "1"]
[TimeControl "40/5400+30:1800+30"]

1. d4 {[%emt 0:00:00]} d5 {[%emt 0:00:00]} 2. c4 {[%emt 0:00:00]} e6 {[%emt 0:00:01]} 3. Nc3 {[%emt 0:01:11]} c6 {[%emt 0:00:22]} 4. Nf3 {[%emt 0:03:55]} f5 {[%emt 0:00:07]} 5. Bf4 {[%emt 0:00:08]} Nf6 {[%emt 0:00:08]} 6. e3 {[%emt 0:00:14]} Be7 {[%emt 0:00:17]} 7. Bd3 {[%emt 0:02:34]} O-O {[%emt 0:00:08]} 8. h3 {[%emt 0:04:17]} Ne4 {[%emt 0:02:35]} 9. Qb3 {[%emt 0:03:37]} Nd7 {[%emt 0:07:00]} 10. cxd5 {[%emt 0:05:58]} cxd5 {[%emt 0:00:07]} 11. Rc1 {[%emt 0:08:02]} a6 {[%emt 0:08:07]} 12. O-O {[%emt 0:02:43]} g5 {[%emt 0:02:41]} 13. Bh2 {[%emt 0:00:25]} Ndf6 {[%emt 0:05:16]} 14. Rc2 {[%emt 0:04:16]} g4 {[%emt 0:05:37]} 15. Ne5 {[%emt 0:01:50]} Bd6 {[%emt 0:04:00]} 16. Ne2 {[%emt 0:08:43]} gxh3 {[%emt 0:05:52]} 17. gxh3 {[%emt 0:00:59]} Ng5 {[%emt 0:00:58]} 18. Nf4 {[%emt 0:10:01]} Bxe5 {[%emt 0:11:26]} 19. dxe5 {[%emt 0:00:11]} Ne8 {[%emt 0:01:36]} 20. f3 {[%emt 0:02:11]} Kh8 {[%emt 0:01:23]} 21. Kh1 {[%emt 0:00:43]} Ng7 {[%emt 0:07:11]} 22. Rg2 {[%emt 0:02:26]} Ne8 {[%emt 0:11:29]} 23. Qb4 {[%emt 0:02:21]} 1-0

[Event "AUT-ch 2018"]
[Site "Vienna"]
[Date "2018.07.25"]
[Round "5"]
[White "Menezes, Christoph"]
[Black "Kummer, Helmut"]
[Result "0-1"]
[ECO "A08"]
[WhiteElo "2430"]
[BlackElo "2290"]
[Annotator "NA"]
[PlyCount "144"]
[EventDate "2018.07.22"]
[EventType "swiss"]
[EventCountry "AUT"]
[SourceTitle "playchess.com"]
[Source "ChessBase"]
[SourceQuality "1"]
[TimeControl "40/5400+30:1800+30"]

1. Nf3 {[%emt 0:00:00]} d5 {[%emt 0:00:00]} 2. g3 {[%emt 0:00:00]} c5 {[%emt 0:00:54]} 3. Bg2 {[%emt 0:00:50]} Nc6 {[%emt 0:00:07]} 4. d4 {[%emt 0:01:15]} e6 {[%emt 0:02:39]} 5. O-O {[%emt 0:00:47]} Nf6 {[%emt 0:00:10]} 6. c4 {[%emt 0:01:06]} cxd4 {[%emt 0:07:11]} 7. Nxd4 {[%emt 0:00:25]} Bc5 {[%emt 0:03:04]} 8. Nxc6 {[%emt 0:07:28]} bxc6 {[%emt 0:00:05]} 9. Qa4 {[%emt 0:03:10]} Bd7 {[%emt 0:01:30]} 10. Qc2 {[%emt 0:03:03]} Rc8 {[%emt 0:03:04]} 11. Nc3 {[%emt 0:00:49]} e5 {[%emt 0:02:43]} 12. Bg5 {[%emt 0:13:42]} d4 {[%emt 0:05:31]} 13. Ne4 {[%emt 0:04:16]} Be7 {[%emt 0:00:05]} 14. Bxf6 {[%emt 0:05:41]} gxf6 {[%emt 0:00:06]} 15. Nd2 {[%emt 0:01:00]} f5 {[%emt 0:15:24]} 16. Nf3 {[%emt 0:10:36]} Bf6 {[%emt 0:00:56]} 17. e4 {[%emt 0:01:02]} fxe4 18. Qxe4 {[%emt 0:00:12]} O-O {[%emt 0:17:15]} 19. Nxe5 {[%emt 0:02:37]} Re8 {[%emt 0:00:29]} 20. f4 {[%emt 0:01:13]} c5 {[%emt 0:00:05]} 21. Rfe1 {[%emt 0:06:25]} Qc7 {[%emt 0:16:00]} 22. Bf1 {[%emt 0:03:19]} Bxe5 {[%emt 0:04:29]} 23. fxe5 {[%emt 0:00:11]} Qc6 {[%emt 0:00:27]} 24. Qf4 {[%emt 0:02:44]} Qg6 {[%emt 0:02:59]} 25. Rad1 {[%emt 0:05:28]} Rb8 {[%emt 0:00:55]} 26. Bd3 {[%emt 0:02:06]} Qg7 {[%emt 0:00:05]} 27. Rd2 {[%emt 0:06:38]} Rb6 {[%emt 0:00:10]} 28. Be4 {[%emt 0:04:04]} Be6 {[%emt 0:02:54]} 29. Bd3 {[%emt 0:02:47]} a5 {[%emt 0:00:19]} 30. g4 {[%emt 0:01:08]} Reb8 {[%emt 0:02:00]} 31. Ree2 {[%emt 0:00:34]} Rb4 {[%emt 0:04:15]} 32. Rc2 {[%emt 0:01:10]} h6 {[%emt 0:01:00]} 33. h3 {[%emt 0:02:50]} Qg5 {[%emt 0:00:40]} 34. Qe4 {[%emt 0:00:09]} Kf8 {[%emt 0:01:57]} 35. Kh2 {[%emt 0:01:23]} h5 {[%emt 0:03:50]} 36. Kg3 {[%emt 0:01:28]} R4b6 {[%emt 0:00:19]} 37. Qf4 {[%emt 0:00:52]} Qxf4+ {[%emt 0:02:31]} 38. Kxf4 {[%emt 0:00:04]} hxg4 {[%emt 0:00:04]} 39. hxg4 {[%emt 0:00:21]} Kg7 {[%emt 0:00:49]} 40. Rh2 {[%emt 0:01:09]} Rh8 {[%emt 0:00:07]} 41. Rxh8 {[%emt 0:07:13]} Kxh8 {[%emt 0:00:00]} 42. Bf5 {[%emt 0:00:06]} a4 {[%emt 0:01:04]} 43. Ke4 {[%emt 0:15:15]} Kg7 {[%emt 0:03:33]} 44. Kf4 {[%emt 0:05:06]} Rb8 {[%emt 0:02:08]} 45. Be4 {[%emt 0:03:28]} Rb4 {[%emt 0:04:46]} 46. Bd3 {[%emt 0:00:14]} Kf8 {[%emt 0:01:14]} 47. Kg3 {[%emt 0:02:16]} Ke7 {[%emt 0:00:08]} 48. Kf4 {[%emt 0:01:19]} Rb8 {[%emt 0:01:25]} 49. Be4 {[%emt 0:00:59]} Rd8 {[%emt 0:00:54]} 50. Bd3 {[%emt 0:00:27]} Rh8 {[%emt 0:00:28]} 51. Be4 {[%emt 0:01:02]} Rh3 {[%emt 0:03:33]} 52. Bf3 {[%emt 0:02:51]} Kd8 {[%emt 0:00:20]} 53. Bd5 {[%emt 0:00:38]} Kd7 {[%emt 0:00:06]} 54. Rf2 {[%emt 0:00:56]} Ke7 {[%emt 0:07:25]} 55. a3 {[%emt 0:00:26]} Re3 {[%emt 0:00:57]} 56. Rd2 {[%emt 0:01:01]} Re1 {[%emt 0:00:14]} 57. Rf2 {[%emt 0:00:24]} Rg1 {[%emt 0:00:20]} 58. Bxe6 {[%emt 0:00:32]} Kxe6 {[%emt 0:00:19]} 59. Rf3 {[%emt 0:00:25]} Rb1 {[%emt 0:01:10]} 60. Rf2 {[%emt 0:00:04]} Rc1 {[%emt 0:00:52]} 61. Ke4 {[%emt 0:00:23]} Re1+ {[%emt 0:00:22]} 62. Kd3 {[%emt 0:00:04]} Rxe5 {[%emt 0:00:21]} 63. Rh2 {[%emt 0:00:15]} Re3+ {[%emt 0:02:36]} 64. Kd2 {[%emt 0:00:01]} Rb3 {[%emt 0:04:43]} 65. Kc1 {[%emt 0:00:25]} Ke5 {[%emt 0:00:29]} 66. Rh5+ {[%emt 0:01:29]} Ke4 {[%emt 0:00:04]} 67. Rxc5 {[%emt 0:00:08]} Rg3 {[%emt 0:00:15]} 68. Rc8 {[%emt 0:01:53]} Kd3 {[%emt 0:01:44]} 69. Kb1 {[%emt 0:00:09]} Rg1+ {[%emt 0:00:04]} 70. Ka2 {[%emt 0:00:01]} Kc2 {[%emt 0:00:26]} 71. c5 {[%emt 0:00:30]} d3 {[%emt 0:00:13]} 72. c6 {[%emt 0:00:10]} Rxg4 {[%emt 0:00:04]} 0-1

[Event "AUT-ch 2018"]
[Site "Vienna"]
[Date "2018.07.25"]
[Round "5"]
[White "Blohberger, Felix"]
[Black "Schwabeneder, Florian"]
[Result "1-0"]
[ECO "A04"]
[WhiteElo "2420"]
[BlackElo "2431"]
[Annotator "NA"]
[PlyCount "79"]
[EventDate "2018.07.22"]
[EventType "swiss"]
[EventCountry "AUT"]
[SourceTitle "playchess.com"]
[Source "ChessBase"]
[SourceQuality "1"]
[TimeControl "40/5400+30:1800+30"]

1. Nf3 {[%emt 0:00:00]} b6 {[%emt 0:00:46]} 2. e4 {[%emt 0:07:56]} Bb7 {[%emt 0:00:45]} 3. Nc3 {[%emt 0:00:05]} e6 {[%emt 0:01:19]} 4. d4 {[%emt 0:00:07]} Bb4 {[%emt 0:00:37]} 5. Bd3 {[%emt 0:00:05]} Nf6 {[%emt 0:00:32]} 6. Nd2 {[%emt 0:00:04]} d5 {[%emt 0:22:23]} 7. e5 {[%emt 0:00:49]} Nfd7 {[%emt 0:00:19]} 8. Qg4 {[%emt 0:01:04]} g6 {[%emt 0:07:51]} 9. Nf3 {[%emt 0:09:20]} Ba6 {[%emt 0:05:18]} 10. Bxa6 {[%emt 0:10:09]} Nxa6 {[%emt 0:00:11]} 11. O-O {[%emt 0:03:00]} c6 {[%emt 0:12:13]} 12. Bh6 {[%emt 0:05:58]} Bf8 {[%emt 0:03:05]} 13. Bxf8 {[%emt 0:01:19]} Nxf8 {[%emt 0:02:57]} 14. Ne2 {[%emt 0:01:59]} Qe7 {[%emt 0:07:29]} 15. Rfc1 {[%emt 0:09:07]} Nd7 {[%emt 0:04:19]} 16. c4 {[%emt 0:02:29]} O-O {[%emt 0:01:00]} 17. h4 {[%emt 0:14:57]} h6 {[%emt 0:05:55]} 18. a3 {[%emt 0:02:26]} Rfc8 {[%emt 0:10:28]} 19. Rc3 {[%emt 0:08:14]} Nc7 {[%emt 0:02:54]} 20. Rac1 {[%emt 0:01:52]} c5 {[%emt 0:00:47]} 21. b4 {[%emt 0:11:11]} dxc4 {[%emt 0:04:57]} 22. dxc5 {[%emt 0:00:10]} Nb5 {[%emt 0:03:18]} 23. Rxc4 {[%emt 0:00:34]} Nxa3 {[%emt 0:00:05]} 24. R4c3 {[%emt 0:00:35]} Nb5 {[%emt 0:00:02]} 25. R3c2 {[%emt 0:00:35]} bxc5 {[%emt 0:01:13]} 26. bxc5 {[%emt 0:00:18]} a6 {[%emt 0:00:35]} 27. c6 {[%emt 0:02:01]} Nb6 {[%emt 0:00:23]} 28. Ng3 {[%emt 0:04:38]} Nd5 {[%emt 0:00:48]} 29. Ne4 {[%emt 0:00:54]} Ra7 {[%emt 0:01:20]} 30. Rc5 {[%emt 0:01:04]} Rd8 {[%emt 0:00:37]} 31. h5 {[%emt 0:01:00]} g5 {[%emt 0:00:08]} 32. Rxd5 {[%emt 0:00:52]} exd5 {[%emt 0:00:35]} 33. Nf6+ {[%emt 0:00:05]} Kf8 {[%emt 0:00:38]} 34. Qf5 {[%emt 0:01:28]} Qe6 {[%emt 0:00:39]} 35. Qh7 {[%emt 0:00:04]} Ke7 {[%emt 0:00:26]} 36. Qxh6 {[%emt 0:00:16]} Qf5 {[%emt 0:00:32]} 37. Qg7 {[%emt 0:01:12]} Qf4 {[%emt 0:00:34]} 38. Re1 {[%emt 0:00:15]} g4 {[%emt 0:00:30]} 39. Ng5 {[%emt 0:00:42]} Rf8 {[%emt 0:00:25]} 40. Nxd5+ {[%emt 0:00:12]} 1-0

[Event "AUT-ch 2018"]
[Site "Vienna"]
[Date "2018.07.25"]
[Round "5"]
[White "Huber, Martin Christian"]
[Black "Khalakhan, Jurij"]
[Result "1-0"]
[ECO "A04"]
[WhiteElo "2374"]
[BlackElo "2215"]
[Annotator "NA"]
[PlyCount "43"]
[EventDate "2018.07.22"]
[EventType "swiss"]
[EventCountry "AUT"]
[SourceTitle "playchess.com"]
[Source "ChessBase"]
[SourceQuality "1"]
[TimeControl "40/5400+30:1800+30"]

1. Nf3 {[%emt 0:00:00]} f5 {[%emt 0:00:00]} 2. g3 {[%emt 0:00:00]} Nf6 {[%emt 0:00:00]} 3. Bg2 {[%emt 0:00:20]} g6 {[%emt 0:00:00]} 4. O-O {[%emt 0:00:40]} Bg7 {[%emt 0:00:00]} 5. d4 {[%emt 0:00:05]} O-O {[%emt 0:00:09]} 6. b3 {[%emt 0:00:09]} d6 {[%emt 0:00:15]} 7. Bb2 {[%emt 0:00:06]} Ng4 {[%emt 0:00:11]} 8. Qc1 {[%emt 0:15:09]} f4 {[%emt 0:10:34]} 9. c4 {[%emt 0:06:35]} fxg3 {[%emt 0:00:23]} 10. hxg3 {[%emt 0:00:17]} e5 {[%emt 0:06:44]} 11. dxe5 {[%emt 0:01:36]} dxe5 {[%emt 0:00:58]} 12. Nc3 {[%emt 0:05:49]} Qe8 {[%emt 0:15:41]} 13. Nd5 {[%emt 0:07:39]} Na6 {[%emt 0:02:01]} 14. Qg5 {[%emt 0:05:35]} Rf7 {[%emt 0:24:25]} 15. Rad1 {[%emt 0:05:02]} Bd7 {[%emt 0:08:58]} 16. Bh3 {[%emt 0:07:22]} c6 {[%emt 0:00:29]} 17. Bxg4 {[%emt 0:01:16]} Bxg4 {[%emt 0:00:40]} 18. Qxg4 {[%emt 0:01:29]} cxd5 {[%emt 0:00:06]} 19. Rxd5 {[%emt 0:02:22]} e4 {[%emt 0:07:42]} 20. Bxg7 {[%emt 0:02:03]} Rxg7 {[%emt 0:03:33]} 21. Re5 {[%emt 0:01:09]} Re7 {[%emt 0:00:01]} 22. Qxe4 {[%emt 0:00:15]} 1-0

[Event "AUT-ch 2018"]
[Site "Vienna"]
[Date "2018.07.25"]
[Round "5"]
[White "Morgunov, Marc"]
[Black "Trippold, Denise"]
[Result "1-0"]
[ECO "C07"]
[WhiteElo "2362"]
[BlackElo "2138"]
[Annotator "NA"]
[PlyCount "59"]
[EventDate "2018.07.22"]
[EventType "swiss"]
[EventCountry "AUT"]
[SourceTitle "playchess.com"]
[Source "ChessBase"]
[SourceQuality "1"]
[TimeControl "40/5400+30:1800+30"]

1. e4 {[%emt 0:00:00]} e6 {[%emt 0:00:00]} 2. d4 {[%emt 0:00:00]} d5 {[%emt 0:00:00]} 3. Nd2 {[%emt 0:00:00]} c5 {[%emt 0:00:00]} 4. exd5 {[%emt 0:00:23]} Qxd5 {[%emt 0:00:20]} 5. Ngf3 {[%emt 0:00:08]} cxd4 {[%emt 0:00:27]} 6. Bc4 {[%emt 0:00:08]} Qd6 {[%emt 0:00:06]} 7. O-O {[%emt 0:00:12]} Nf6 {[%emt 0:00:17]} 8. Nb3 {[%emt 0:00:16]} Nc6 {[%emt 0:00:31]} 9. Nbxd4 {[%emt 0:00:20]} Nxd4 {[%emt 0:00:09]} 10. Nxd4 {[%emt 0:00:05]} a6 {[%emt 0:00:44]} 11. Re1 {[%emt 0:00:09]} Qc7 {[%emt 0:00:39]} 12. Bf1 {[%emt 0:00:07]} Bd6 {[%emt 0:01:30]} 13. Nf5 {[%emt 0:01:48]} Bxh2+ {[%emt 0:00:46]} 14. Kh1 {[%emt 0:00:07]} Kf8 {[%emt 0:00:56]} 15. Qd4 {[%emt 0:00:32]} exf5 {[%emt 0:06:58]} 16. Qxf6 {[%emt 0:00:08]} h6 {[%emt 0:05:43]} 17. Qd4 {[%emt 0:01:36]} Bd6 {[%emt 0:02:12]} 18. Bc4 {[%emt 0:01:14]} Bd7 {[%emt 0:15:23]} 19. b3 {[%emt 0:03:10]} Bc5 {[%emt 0:07:31]} 20. Qd5 {[%emt 0:12:17]} Be6 {[%emt 0:09:37]} 21. Rxe6 {[%emt 0:11:38]} Rd8 {[%emt 0:00:16]} 22. Qe5 {[%emt 0:01:48]} Rd1+ {[%emt 0:34:49]} 23. Kh2 {[%emt 0:00:08]} Qxe5+ {[%emt 0:01:03]} 24. Rxe5 {[%emt 0:00:06]} Bd6 {[%emt 0:05:09]} 25. Ba3 {[%emt 0:00:06]} Rxa1 {[%emt 0:00:03]} 26. Bxd6+ {[%emt 0:00:06]} Kg8 {[%emt 0:00:03]} 27. Re7 {[%emt 0:00:10]} Rxa2 {[%emt 0:00:18]} 28. Bxf7+ {[%emt 0:00:34]} Kh7 {[%emt 0:00:07]} 29. Be6 {[%emt 0:00:05]} Kg6 {[%emt 0:02:31]} 30. Be5 {[%emt 0:00:23]} 1-0

[Event "AUT-ch 2018"]
[Site "Vienna"]
[Date "2018.07.25"]
[Round "5"]
[White "Knoll, Hermann"]
[Black "Hapala, Elisabeth"]
[Result "1-0"]
[ECO "B40"]
[WhiteElo "2338"]
[BlackElo "2131"]
[Annotator "NA"]
[PlyCount "95"]
[EventDate "2018.07.22"]
[EventType "swiss"]
[EventCountry "AUT"]
[SourceTitle "playchess.com"]
[Source "ChessBase"]
[SourceQuality "1"]
[TimeControl "40/5400+30:1800+30"]

1. e4 {[%emt 0:00:00]} c5 {[%emt 0:00:00]} 2. Nf3 {[%emt 0:00:00]} e6 {[%emt 0:00:00]} 3. Qe2 {[%emt 0:00:00]} Nc6 {[%emt 0:00:08]} 4. g3 {[%emt 0:00:04]} Nge7 {[%emt 0:00:30]} 5. c3 {[%emt 0:00:12]} e5 {[%emt 0:10:00]} 6. Na3 {[%emt 0:01:36]} g6 {[%emt 0:02:48]} 7. Bg2 {[%emt 0:01:04]} Bg7 {[%emt 0:00:10]} 8. O-O {[%emt 0:00:28]} O-O {[%emt 0:00:22]} 9. Nc2 {[%emt 0:02:15]} b6 {[%emt 0:06:17]} 10. d4 {[%emt 0:01:23]} cxd4 {[%emt 0:04:30]} 11. cxd4 {[%emt 0:01:00]} Nxd4 {[%emt 0:13:33]} 12. Ncxd4 {[%emt 0:03:16]} exd4 {[%emt 0:00:05]} 13. Bf4 {[%emt 0:06:47]} d5 {[%emt 0:11:26]} 14. e5 {[%emt 0:01:29]} Nc6 {[%emt 0:00:35]} 15. Qd2 {[%emt 0:00:39]} Ba6 {[%emt 0:05:55]} 16. Rfe1 {[%emt 0:03:51]} d3 {[%emt 0:05:04]} 17. h4 {[%emt 0:02:45]} Qd7 {[%emt 0:12:57]} 18. Kh2 {[%emt 0:00:31]} Nd8 {[%emt 0:02:20]} 19. h5 {[%emt 0:02:47]} Ne6 {[%emt 0:01:07]} 20. Bh3 {[%emt 0:02:27]} Rac8 {[%emt 0:01:40]} 21. hxg6 {[%emt 0:00:38]} hxg6 {[%emt 0:00:20]} 22. Bxe6 {[%emt 0:03:05]} Qxe6 {[%emt 0:03:01]} 23. Nd4 {[%emt 0:00:38]} Qg4 {[%emt 0:00:46]} 24. f3 {[%emt 0:01:34]} Qd7 {[%emt 0:00:51]} 25. b3 {[%emt 0:00:09]} Rc5 {[%emt 0:02:53]} 26. g4 {[%emt 0:01:09]} Rfc8 {[%emt 0:00:26]} 27. Kg3 {[%emt 0:00:08]} Rc2 {[%emt 0:03:54]} 28. Qe3 {[%emt 0:02:51]} Re2 {[%emt 0:07:26]} 29. Rxe2 {[%emt 0:00:25]} dxe2 {[%emt 0:00:04]} 30. Rh1 {[%emt 0:01:08]} Qe7 {[%emt 0:02:01]} 31. Kf2 {[%emt 0:01:48]} Re8 {[%emt 0:00:53]} 32. Kg2 {[%emt 0:08:29]} Qa3 {[%emt 0:00:42]} 33. Qd2 {[%emt 0:00:56]} Qe7 {[%emt 0:01:23]} 34. Bg3 {[%emt 0:02:40]} Qd7 {[%emt 0:01:18]} 35. Nxe2 {[%emt 0:06:23]} Bxe5 {[%emt 0:01:22]} 36. Bxe5 {[%emt 0:00:25]} Rxe5 {[%emt 0:00:01]} 37. Nd4 {[%emt 0:00:07]} Qe7 {[%emt 0:01:01]} 38. Qh6 {[%emt 0:08:01]} Qf6 {[%emt 0:00:05]} 39. Kg3 {[%emt 0:06:33]} Re7 {[%emt 0:00:59]} 40. Qd2 {[%emt 0:05:54]} Qe5+ {[%emt 0:00:22]} 41. Kg2 {[%emt 0:32:46]} Qe3 {[%emt 0:09:36]} 42. Qxe3 {[%emt 0:00:00]} Rxe3 {[%emt 0:00:05]} 43. Rd1 {[%emt 0:00:00]} Kf8 {[%emt 0:04:12]} 44. Kg3 {[%emt 0:00:00]} Ke7 {[%emt 0:09:10]} 45. Rc1 {[%emt 0:00:00]} Kd7 {[%emt 0:01:14]} 46. Kf4 {[%emt 0:00:00]} Rd3 {[%emt 0:01:01]} 47. Nc6 {[%emt 0:00:00]} Bb7 {[%emt 0:01:14]} 48. Ne5+ {Ba6 Nc6 Re3 Nd4} 1-0

[Event "AUT-ch 2018"]
[Site "Vienna"]
[Date "2018.07.25"]
[Round "5"]
[White "Sandhoefner, Florian"]
[Black "Windhager, Hannes"]
[Result "1/2-1/2"]
[ECO "B73"]
[WhiteElo "2327"]
[BlackElo "2203"]
[Annotator "NA"]
[PlyCount "60"]
[EventDate "2018.07.22"]
[EventType "swiss"]
[EventCountry "AUT"]
[SourceTitle "playchess.com"]
[Source "ChessBase"]
[SourceQuality "1"]
[TimeControl "40/5400+30:1800+30"]

1. e4 {[%emt 0:00:00]} c5 {[%emt 0:00:00]} 2. Nf3 {[%emt 0:00:00]} d6 {[%emt 0:00:00]} 3. d4 {[%emt 0:00:00]} cxd4 {[%emt 0:00:00]} 4. Nxd4 {[%emt 0:00:00]} Nf6 {[%emt 0:00:00]} 5. Nc3 {[%emt 0:00:00]} g6 {[%emt 0:00:00]} 6. Be3 Bg7 {[%emt 0:00:02]} 7. Be2 {[%emt 0:00:00]} O-O {[%emt 0:00:13]} 8. O-O {[%emt 0:00:00]} Nc6 {[%emt 0:00:10]} 9. Qd2 {[%emt 0:00:01]} d5 {[%emt 0:00:47]} 10. Nxc6 {[%emt 0:00:10]} bxc6 {[%emt 0:00:05]} 11. Rad1 {[%emt 0:00:02]} Qc7 {[%emt 0:12:39]} 12. exd5 {[%emt 0:08:07]} Nxd5 {[%emt 0:00:56]} 13. Nxd5 {[%emt 0:10:25]} cxd5 {[%emt 0:00:06]} 14. Qxd5 {[%emt 0:00:15]} Be6 {[%emt 0:04:38]} 15. Qc5 {[%emt 0:02:29]} Qxc5 {[%emt 0:02:13]} 16. Bxc5 {[%emt 0:00:26]} Bxb2 {[%emt 0:03:09]} 17. Bxe7 {[%emt 0:02:53]} Rfe8 {[%emt 0:04:47]} 18. Bc5 {[%emt 0:03:32]} Bxa2 {[%emt 0:10:09]} 19. Bf3 {[%emt 0:02:05]} Rac8 {[%emt 0:03:26]} 20. Bxa7 {[%emt 0:01:10]} Rxc2 {[%emt 0:01:06]} 21. Be3 {[%emt 0:01:42]} Bg7 {[%emt 0:08:25]} 22. Bd5 {[%emt 0:01:44]} Bxd5 {[%emt 0:00:39]} 23. Rxd5 {[%emt 0:00:16]} Rc7 {[%emt 0:00:24]} 24. Rfd1 {[%emt 0:00:27]} h5 {[%emt 0:01:18]} 25. g3 {[%emt 0:01:53]} Bf6 {[%emt 0:00:52]} 26. Rd7 {[%emt 0:00:45]} Rxd7 {[%emt 0:00:17]} 27. Rxd7 {[%emt 0:00:02]} Kg7 {[%emt 0:00:48]} 28. Kg2 {[%emt 0:00:12]} Re6 {[%emt 0:00:27]} 29. Bd4 {[%emt 0:00:16]} Bxd4 {[%emt 0:00:08]} 30. Rxd4 {[%emt 0:00:02]} Ra6 {[%emt 0:00:09]} 1/2-1/2

[Event "AUT-ch 2018"]
[Site "Vienna"]
[Date "2018.07.25"]
[Round "5"]
[White "Mostbauer, Florian"]
[Black "Polterauer, Chiara"]
[Result "1-0"]
[ECO "C68"]
[WhiteElo "2319"]
[BlackElo "2169"]
[Annotator "ChessBase"]
[PlyCount "169"]
[EventDate "2018.07.22"]
[EventType "swiss"]
[EventCountry "AUT"]
[SourceTitle "playchess.com"]
[Source "ChessBase"]
[SourceQuality "1"]
[TimeControl "40/5400+30:1800+30"]

1. e4 {[%emt 0:00:00]} e5 {[%emt 0:00:00]} 2. Nf3 {[%emt 0:00:00]} Nc6 {[%emt 0:00:00]} 3. Bb5 {[%emt 0:00:00]} a6 {[%emt 0:00:04]} 4. Bxc6 {[%emt 0:00:00]} dxc6 {[%emt 0:00:23]} 5. Nc3 {[%emt 0:00:10]} Qf6 {[%emt 0:02:15]} 6. d4 {[%emt 0:04:09]} exd4 {[%emt 0:01:37]} 7. Qxd4 {[%emt 0:00:36]} Qxd4 {[%emt 0:01:41]} 8. Nxd4 {[%emt 0:00:08]} Bd7 {[%emt 0:01:53]} 9. Bf4 {[%emt 0:01:24]} O-O-O {[%emt 0:00:43]} 10. O-O-O {[%emt 0:01:46]} Bd6 {[%emt 0:07:44]} 11. Nde2 {[%emt 0:09:56]} Bc5 {[%emt 0:12:18]} 12. f3 {[%emt 0:00:34]} Ne7 {[%emt 0:00:07]} 13. Rd3 {[%emt 0:05:04]} Ng6 {[%emt 0:03:04]} 14. Bg3 {[%emt 0:03:50]} h5 {[%emt 0:04:11]} 15. h3 {[%emt 0:01:27]} h4 {[%emt 0:06:44]} 16. Bh2 {[%emt 0:00:13]} f5 {[%emt 0:01:50]} 17. Rhd1 {[%emt 0:17:44]} Rhf8 {[%emt 0:06:11]} 18. exf5 {[%emt 0:06:45]} Bxf5 {[%emt 0:00:08]} 19. Rxd8+ {[%emt 0:00:08]} Rxd8 {[%emt 0:00:04]} 20. Rxd8+ {[%emt 0:00:07]} Kxd8 {[%emt 0:00:04]} 21. Kd2 {[%emt 0:05:02]} Kd7 {[%emt 0:07:26]} 22. Ne4 {[%emt 0:04:50]} Bb6 {[%emt 0:03:56]} 23. b3 {[%emt 0:04:42]} Nf8 {[%emt 0:06:11]} 24. Nf4 {[%emt 0:01:23]} Ba5+ {[%emt 0:02:50]} 25. Ke2 {[%emt 0:00:48]} Bb6 {[%emt 0:00:07]} 26. c4 {[%emt 0:07:24]} Bd4 {[%emt 0:02:26]} 27. Nd3 {[%emt 0:01:51]} Ne6 {[%emt 0:03:49]} 28. Be5 {[%emt 0:02:08]} c5 {[%emt 0:05:17]} 29. Bh2 {[%emt 0:03:49]} Bxe4 {[%emt 0:13:10]} 30. fxe4 {[%emt 0:00:13]} Ng5 {[%emt 0:00:04]} 31. Ne5+ {[%emt 0:01:01]} Ke6 {[%emt 0:00:07]} 32. Nf3 {[%emt 0:00:54]} Nxe4 {[%emt 0:00:18]} 33. Nxh4 {[%emt 0:01:49]} Nc3+ {[%emt 0:03:03]} 34. Kd3 {[%emt 0:01:03]} Nxa2 {[%emt 0:00:08]} 35. Bxc7 {[%emt 0:01:38]} Nc1+ {[%emt 0:00:05]} 36. Kc2 {[%emt 0:00:43]} Ne2 {[%emt 0:00:18]} 37. Kd2 {[%emt 0:02:35]} Nc3 {[%emt 0:00:33]} 38. Kd3 {[%emt 0:00:10]} Na2 {[%emt 0:02:39]} 39. Nf3 {[%emt 0:01:49]} Bf6 {[%emt 0:00:21]} 40. g4 {[%emt 0:05:50]} Nc1+ {[%emt 0:03:51]} 41. Kc2 {[%emt 0:30:13]} Ne2 {[%emt 0:30:41]} 42. Bb6 {[%emt 0:04:15]} Be7 {[%emt 0:00:00]} 43. h4 {[%emt 0:00:00]} Nf4 {[%emt 0:00:00]} 44. h5 {[%emt 0:00:00]} Kd6 {[%emt 0:00:00]} 45. Kd2 {[%emt 0:00:00]} Ne6 {[%emt 0:00:00]} 46. Ke3 {[%emt 0:00:00]} Bf6 {[%emt 0:00:00]} 47. Ke4 {[%emt 0:00:00]} Bc3 {[%emt 0:00:00]} 48. Kf5 {[%emt 0:00:00]} Kd7 {[%emt 0:00:00]} 49. g5 {[%emt 0:00:00]} Kd6 {[%emt 0:02:09]} 50. h6 {[%emt 0:00:00]} Nf8 {[%emt 0:00:04]} 51. hxg7 {[%emt 0:03:34]} Bxg7 {[%emt 0:00:05]} 52. Nd2 {[%emt 0:01:29]} Nd7 {[%emt 0:04:15]} 53. Ne4+ {[%emt 0:00:44]} Kc6 {[%emt 0:00:06]} 54. Bd8 {[%emt 0:00:11]} b5 {[%emt 0:00:34]} 55. Ke6 {[%emt 0:00:52]} bxc4 {[%emt 0:00:28]} 56. bxc4 {[%emt 0:00:06]} Ne5 {[%emt 0:00:19]} 57. Nd2 {[%emt 0:02:08]} Nd3 {[%emt 0:00:06]} 58. Kf7 {[%emt 0:01:05]} Bc3 {[%emt 0:00:39]} 59. Ne4 {[%emt 0:00:12]} Bd4 {[%emt 0:00:04]} 60. Bf6 {[%emt 0:00:32]} Nf4 {[%emt 0:01:46]} 61. g6 {[%emt 0:00:51]} Nxg6 {[%emt 0:00:08]} 62. Kxg6 {[%emt 0:00:10]} a5 {[%emt 0:00:16]} 63. Bg5 {[%emt 0:00:34]} a4 {[%emt 0:00:18]} 64. Bc1 {[%emt 0:00:08]} Kb6 {[%emt 0:01:48]} 65. Ba3 {[%emt 0:00:19]} Kc6 {[%emt 0:00:32]} 66. Kf5 {[%emt 0:00:07]} Be3 {[%emt 0:00:30]} 67. Nc3 {[%emt 0:01:15]} Bh6 {[%emt 0:00:19]} 68. Ke6 {[%emt 0:00:14]} Be3 {[%emt 0:00:20]} 69. Nxa4 {[%emt 0:00:10]} Bd4 {[%emt 0:00:09]} 70. Nb2 {[%emt 0:00:06]} Bg1 {[%emt 0:00:15]} 71. Nd3 {[%emt 0:00:06]} Bd4 {[%emt 0:00:57]} 72. Ne5+ {[%emt 0:00:06]} Kb6 {[%emt 0:00:12]} 73. Kd5 {[%emt 0:00:19]} Bc3 {[%emt 0:00:21]} 74. Bxc5+ {[%emt 0:00:16]} Kc7 {[%emt 0:00:03]} 75. Ba3 {[%emt 0:00:12]} Be1 {[%emt 0:00:10]} 76. c5 {[%emt 0:00:12]} Bg3 {[%emt 0:00:08]} 77. Bb4 {[%emt 0:00:24]} Bf2 {[%emt 0:00:32]} 78. Ba5+ {[%emt 0:00:13]} Kc8 {[%emt 0:00:04]} 79. c6 {[%emt 0:00:14]} Bg3 {[%emt 0:00:18]} 80. Nc4 {[%emt 0:00:08]} Kb8 {[%emt 0:02:24]} 81. Nd6 {[%emt 0:00:23]} Ka7 {[%emt 0:00:30]} 82. c7 {[%emt 0:00:54]} Bxd6 {[%emt 0:00:17]} 83. Kxd6 {[%emt 0:00:09]} Kb7 {[%emt 0:00:02]} 84. Kd7 {[%emt 0:00:07]} Ka7 {[%emt 0:00:03]} 85. Bb6+ {[%emt 0:00:05]} 1-0